fUST/lending_fUST_20240528
["ID","MTS","AMOUNT","RATE_DAILY","PERIOD"]
[328078990,1716839453953,-221.23684959,0.00027945,4]
[328078992,1716839453963,-500.0,0.00027945,4]
[328078994,1716839453973,-500.0,0.00027945,4]
[328078996,1716839453984,-1242.77,0.00027945,4]
[328078998,1716839453994,-500.0,0.00027945,4]
[328079000,1716839454004,-500.0,0.00027945,4]
[328079002,1716839454013,-484.426738,0.00027945,2]
[328079004,1716839454023,-484.426738,0.00027945,2]
[328079006,1716839454037,-484.426738,0.00027945,2]
[328079008,1716839454047,-547.65,0.00027945,4]
[328079010,1716839454058,-484.426738,0.00027945,2]
[328079012,1716839454067,-484.426738,0.00027945,2]
[328079013,1716839454078,-484.426738,0.00027945,2]
[328079016,1716839454089,-1186.2,0.00027945,4]
[328079017,1716839454098,-500.0,0.00027945,4]
[328079020,1716839454108,-500.0,0.00027945,4]
[328079022,1716839454118,-500.0,0.00027945,4]
[328079024,1716839454128,-500.0,0.00027945,4]
[328079026,1716839454137,-698.18,0.00027945,2]
[328079028,1716839454147,-537.74,0.00027945,4]
[328079030,1716839454157,-963.1,0.00027945,4]
[328079032,1716839454166,-626.71,0.00027945,4]
[328079034,1716839454176,-769.16,0.00027945,4]
[328079036,1716839454188,-500.0,0.00027945,4]
[328079038,1716839454199,-500.0,0.00027945,4]
[328079040,1716839454213,-663.05,0.00027945,4]
[328079042,1716839454223,-470.96,0.00027945,4]
[328079044,1716839454234,-500.0,0.00027945,4]
[328079046,1716839454244,-636.71,0.00027945,4]
[328079048,1716839454254,-500.0,0.00027945,4]
[328079050,1716839454264,-843.35,0.00027945,4]
[328079052,1716839454275,-364.858996,0.00027945,2]
[328079054,1716839454289,-364.858996,0.00027945,2]
[328079056,1716839454297,-364.858996,0.00027945,2]
[328079058,1716839454307,-364.858996,0.00027945,2]
[328079060,1716839454315,-364.858996,0.00027945,2]
[328079062,1716839454324,-364.858996,0.00027945,2]
[328079064,1716839454334,-500.0,0.00027945,4]
[328079066,1716839454344,-500.0,0.00027945,4]
[328079068,1716839454354,-1448.51,0.00027945,4]
[328079070,1716839454364,-500.0,0.00027945,4]
[328079073,1716839454374,-500.0,0.00027945,4]
[328079074,1716839454384,-500.0,0.00027945,4]
[328079077,1716839454394,-500.0,0.00027945,4]
[328079079,1716839454404,-1819.09,0.00027945,4]
[328079081,1716839454413,-500.0,0.00027945,4]
[328079083,1716839454423,-659.81,0.00027945,4]
[328079085,1716839454432,-319.73915264,0.00027945,4]
[328079087,1716839454442,-500.0,0.00027945,4]
[328079089,1716839454451,-2189.09,0.00027945,4]
[328079091,1716839454461,-575.02,0.00027945,4]
[328079093,1716839454471,-500.0,0.00027945,4]
[328079094,1716839454480,-552.67,0.00027945,4]
[328079097,1716839454491,-151.0,0.00027945,2]
[328079099,1716839454500,-151.0,0.00027945,2]
[328079101,1716839454510,-151.0,0.00027945,2]
[328079103,1716839454520,-500.0,0.00027945,4]
[328079105,1716839454529,-500.0,0.00027945,4]
[328079106,1716839454540,-686.62,0.00027945,4]
[328079109,1716839454550,-500.0,0.00027945,4]
[328079111,1716839454559,-500.0,0.00027945,4]
[328079113,1716839454568,-500.0,0.00027945,4]
[328079115,1716839454578,-500.0,0.00027945,4]
[328079117,1716839454588,-500.0,0.00027945,4]
[328079118,1716839454597,-559.75,0.00027945,4]
[328079120,1716839454607,-500.0,0.00027945,4]
[328079122,1716839454617,-1162.4,0.00027945,4]
[328079125,1716839454627,-151.0,0.00027945,2]
[328079127,1716839454636,-291.226236,0.00027945,2]
[328079128,1716839454647,-500.0,0.00027945,4]
[328079131,1716839454657,-1703.79,0.00027945,4]
[328079133,1716839454668,-500.0,0.00027945,4]
[328079135,1716839454677,-1445.44,0.00027945,4]
[328079137,1716839454687,-500.0,0.00027945,4]
[328079139,1716839454697,-500.0,0.00027945,4]
[328079141,1716839454706,-500.0,0.00027945,4]
[328079143,1716839454716,-620.35,0.00027945,4]
[328079145,1716839454726,-526.09996599,0.00027945,4]
[328079147,1716839454736,-500.0,0.00027945,4]
[328079149,1716839454745,-500.0,0.00027945,4]
[328079151,1716839454756,-1246.08,0.00027945,4]
[328079153,1716839454766,-500.0,0.00027945,4]
[328079155,1716839454776,-302.861523,0.00027945,2]
[328079157,1716839454788,-302.861523,0.00027945,2]
[328079159,1716839454798,-302.861523,0.00027945,2]
[328079161,1716839454809,-302.861523,0.00027945,2]
[328079163,1716839454818,-1630.19,0.00027945,4]
[328079165,1716839454828,-151.0,0.00027945,2]
[328079167,1716839454838,-151.0,0.00027945,2]
[328079169,1716839454849,-270.105906,0.00027945,2]
[328079171,1716839454859,-302.861523,0.00027945,2]
[328079173,1716839454869,-302.861523,0.00027945,2]
[328079175,1716839454884,-302.861523,0.00027945,2]
[328079177,1716839454894,-302.861523,0.00027945,2]
[328079179,1716839454904,-500.0,0.00027945,4]
[328079181,1716839454914,-151.0,0.00027945,2]
[328079183,1716839454923,-222.250738,0.00027945,2]
[328079185,1716839454933,-637.6454781,0.00027945,4]
[328079187,1716839454943,-873.57,0.00027945,4]
[328079190,1716839454953,-500.0,0.00027945,4]
[328079192,1716839454963,-500.0,0.00027945,4]
[328079194,1716839454973,-500.0,0.00027945,4]
[328079196,1716839454983,-500.0,0.00027945,4]
[328079198,1716839454994,-1716.44,0.00027945,4]
[328079200,1716839455004,-218.126001,0.00027945,2]
[328079202,1716839455013,-218.126001,0.00027945,2]
[328079204,1716839455023,-218.126001,0.00027945,2]
[328079206,1716839455032,-218.126001,0.00027945,2]
[328079208,1716839455048,-218.126001,0.00027945,2]
[328079210,1716839455058,-218.126001,0.00027945,2]
[328079212,1716839455069,-218.126001,0.00027945,2]
[328079214,1716839455078,-218.126001,0.00027945,2]
[328079216,1716839455088,-500.0,0.00027945,4]
[328079218,1716839455097,-500.0,0.00027945,4]
[328079220,1716839455107,-500.0,0.00027945,4]
[328079222,1716839455116,-713.01,0.00027945,4]
[328079224,1716839455126,-500.0,0.00027945,4]
[328079226,1716839455136,-1785.76,0.00027945,4]
[328079228,1716839455146,-500.0,0.00027945,4]
[328079230,1716839455156,-500.0,0.00027945,4]
[328079232,1716839455166,-589.4530507,0.00027945,2]
[328079234,1716839455175,-500.0,0.00027945,4]
[328079236,1716839455185,-682.098735,0.00027945,2]
[328079238,1716839455201,-682.098735,0.00027945,2]
[328079240,1716839455211,-682.098735,0.00027945,2]
[328079242,1716839455221,-500.0,0.00027945,4]
[328079244,1716839455230,-500.0,0.00027945,4]
[328079247,1716839455242,-682.098735,0.00027945,2]
[328079249,1716839455251,-682.098735,0.00027945,2]
[328079251,1716839455261,-682.098735,0.00027945,2]
[328079253,1716839455274,-500.0,0.00027945,4]
[328079255,1716839455285,-500.0,0.00027945,4]
[328079257,1716839455297,-2296.91,0.00027945,4]
[328079259,1716839455308,-687.35,0.00027945,4]
[328079261,1716839455318,-500.0,0.00027945,4]
[328079263,1716839455329,-206.286403,0.00027945,2]
[328079265,1716839455339,-598.12,0.00027945,4]
[328079267,1716839455350,-2656.45,0.00027945,4]
[328079269,1716839455360,-8265.85,0.00027945,4]
[328079271,1716839455369,-500.0,0.00027945,4]
[328079273,1716839455379,-965.84,0.00027945,4]
[328079275,1716839455389,-500.0,0.00027945,4]
[328079277,1716839455399,-1148.95,0.00027945,4]
[328079279,1716839455408,-619.8,0.00027945,4]
[328079281,1716839455418,-582.95,0.00027945,4]
[328079283,1716839455428,-151.0,0.00027945,2]
[328079285,1716839455438,-853.04,0.00027945,4]
[328079287,1716839455448,-151.0,0.00027945,2]
[328079289,1716839455458,-151.0,0.00027945,2]
[328079291,1716839455468,-500.0,0.00027945,4]
[328079293,1716839455478,-300.0,0.00027945,4]
[328079295,1716839455488,-500.0,0.00027945,4]
[328079297,1716839455498,-534.35,0.00027945,4]
[328079299,1716839455507,-834.98,0.00027945,4]
[328079301,1716839455517,-151.0,0.00027945,2]
[328079303,1716839455526,-500.0,0.00027945,4]
[328079305,1716839455539,-10588.65,0.00027945,4]
[328079307,1716839455548,-500.0,0.00027945,4]
[328079309,1716839455558,-500.0,0.00027945,4]
[328079311,1716839455567,-521.38140049,0.00027945,4]
[328079313,1716839455577,-500.0,0.00027945,4]
[328079315,1716839455587,-1696.35,0.00027945,4]
[328079317,1716839455596,-500.0,0.00027945,4]
[328079318,1716839455606,-946.79,0.00027945,4]
[328079321,1716839455616,-500.0,0.00027945,4]
[328079322,1716839455626,-500.0,0.00027945,4]
[328079325,1716839455636,-500.0,0.00027945,4]
[328079327,1716839455646,-500.0,0.00027945,4]
[328079329,1716839455656,-500.0,0.00027945,4]
[328079330,1716839455666,-500.0,0.00027945,4]
[328079333,1716839455675,-1405.43,0.00027945,2]
[328079335,1716839455686,-500.0,0.00027945,4]
[328079336,1716839455696,-344.782452,0.00027945,2]
[328079339,1716839455706,-344.782452,0.00027945,2]
[328079340,1716839455716,-778.07,0.00027945,4]
[328079342,1716839455726,-500.0,0.00027945,4]
[328079344,1716839455736,-2107.73,0.00027945,4]
[328079346,1716839455746,-344.782452,0.00027945,2]
[328079347,1716839455757,-344.782448,0.00027945,2]
[328079348,1716839455767,-4154.84,0.00027945,4]
[328079349,1716839455777,-500.0,0.00027945,4]
[328079350,1716839455791,-500.0,0.00027945,4]
[328079351,1716839455800,-392.048181,0.00027945,2]
[328079352,1716839455810,-392.048181,0.00027945,2]
[328079353,1716839455819,-500.0,0.00027945,4]
[328079354,1716839455829,-392.048181,0.00027945,2]
[328079355,1716839455838,-392.048182,0.00027945,2]
[328079356,1716839455847,-500.0,0.00027945,4]
[328079357,1716839455857,-500.0,0.00027945,4]
[328079358,1716839455867,-382.281221,0.00027945,2]
[328079359,1716839455881,-500.0,0.00027945,4]
[328079360,1716839455892,-382.281221,0.00027945,2]
[328079361,1716839455902,-382.281221,0.00027945,2]
[328079363,1716839455912,-344.1503,0.00027945,2]
[328079365,1716839455922,-382.281217,0.00027945,2]
[328079367,1716839455933,-344.1503,0.00027945,2]
[328079369,1716839455943,-1342.97,0.00027945,4]
[328079371,1716839455952,-500.0,0.00027945,4]
[328079373,1716839455962,-500.0,0.00027945,4]
[328079375,1716839455972,-344.1503,0.00027945,2]
[328079377,1716839455981,-344.150294,0.00027945,2]
[328079379,1716839455990,-744.7,0.00027945,4]
[328079381,1716839456000,-500.0,0.00027945,4]
[328079383,1716839456010,-500.0,0.00027945,4]
[328079385,1716839456019,-695.05,0.00027945,4]
[328079387,1716839456029,-521.38,0.00027945,4]
[328079389,1716839456042,-1720.73,0.00027945,4]
[328079391,1716839456052,-500.0,0.00027945,4]
[328079393,1716839456062,-500.0,0.00027945,4]
[328079395,1716839456072,-500.0,0.00027945,4]
[328079397,1716839456081,-3119.81,0.00027945,4]
[328079399,1716839456091,-500.0,0.00027945,4]
[328079401,1716839456100,-1489.62,0.00027945,4]
[328079403,1716839456110,-500.0,0.00027945,4]
[328079405,1716839456119,-500.0,0.00027945,4]
[328079407,1716839456128,-4538.92,0.00027945,4]
[328079409,1716839456138,-12296.44,0.00027945,4]
[328079411,1716839456147,-500.0,0.00027945,4]
[328079413,1716839456157,-500.0,0.00027945,4]
[328079415,1716839456167,-1587.5,0.00027945,4]
[328079417,1716839456176,-500.0,0.00027945,4]
[328079419,1716839456187,-600.29,0.00027945,4]
[328079421,1716839456201,-500.0,0.00027945,4]
[328079423,1716839456210,-500.0,0.00027945,4]
[328079425,1716839456220,-13552.79,0.00027945,4]
[328079427,1716839456230,-590.99,0.00027945,4]
[328079429,1716839456240,-500.0,0.00027945,4]
[328079431,1716839456250,-578.94,0.00027945,4]
[328079433,1716839456260,-500.0,0.00027945,4]
[328079439,1716839456307,-500.0,0.00027945,4]
[328079441,1716839456316,-500.0,0.00027945,4]
[328079443,1716839456325,-178.726057,0.00027945,2]
[328079445,1716839456335,-178.726057,0.00027945,2]
[328079447,1716839456344,-178.726057,0.00027945,2]
[328079449,1716839456353,-500.0,0.00027945,4]
[328079451,1716839456362,-1459.35,0.00027945,4]
[328079453,1716839456372,-2352.06,0.00027945,4]
[328079455,1716839456382,-178.726057,0.00027945,2]
[328079457,1716839456391,-178.726057,0.00027945,2]
[328079459,1716839456400,-178.726059,0.00027945,2]
[328079461,1716839456409,-500.0,0.00027945,4]
[328079463,1716839456419,-215.834358,0.00027945,2]
[328079465,1716839456428,-215.834358,0.00027945,2]
[328079467,1716839456437,-215.834358,0.00027945,2]
[328079469,1716839456446,-215.834358,0.00027945,2]
[328079471,1716839456455,-500.0,0.00027945,4]
[328079473,1716839456464,-742.11,0.00027945,4]
[328079475,1716839456474,-500.0,0.00027945,4]
[328079477,1716839456483,-537.04,0.00027945,4]
[328079478,1716839456492,-215.834358,0.00027945,2]
[328079480,1716839456502,-215.834358,0.00027945,2]
[328079482,1716839456511,-215.834358,0.00027945,2]
[328079484,1716839456521,-215.834358,0.00027945,2]
[328079486,1716839456530,-511.68,0.00027945,4]
[328079488,1716839456543,-5106.18,0.00027945,4]
[328079491,1716839456553,-500.0,0.00027945,4]
[328079492,1716839456563,-500.0,0.00027945,4]
[328079494,1716839456572,-216.89093951,0.00027976,2]
[328079496,1716839456582,-221.8508194,0.00028,2]
[328079498,1716839456591,-1000.0,0.00028,7]
[328079500,1716839456601,-2093.84016303,0.00028,4]
[328079503,1716839456611,-499.999999,0.00028,2]
[328079505,1716839456621,-1473.94932464,0.00028,10]
[328079507,1716839456631,-916.81106543,0.00028001,2]
[328079509,1716839456641,-216.89093951,0.00028057,2]
[328079510,1716839456650,-216.89093951,0.00028107,2]
[328079512,1716839456660,-600.0,0.00028142,2]
[328079514,1716839456670,-216.89093951,0.00028167,2]
[328079516,1716839456679,-500.0,0.00028219,4]
[328079518,1716839456687,-500.0,0.00028219,4]
[328079520,1716839456697,-500.0,0.00028219,4]
[328079522,1716839456707,-500.0,0.00028219,4]
[328079524,1716839456716,-500.0,0.00028219,4]
[328079526,1716839456726,-716.86,0.00028219,4]
[328079528,1716839456734,-500.0,0.00028219,4]
[328079530,1716839456743,-500.0,0.00028219,4]
[328079532,1716839456753,-500.0,0.00028219,4]
[328079534,1716839456762,-500.0,0.00028219,4]
[328079536,1716839456771,-500.0,0.00028219,4]
[328079538,1716839456780,-500.0,0.00028219,4]
[328079540,1716839456793,-500.0,0.00028219,4]
[328079542,1716839456803,-151.0,0.00028219,2]
[328079544,1716839456812,-500.0,0.00028219,4]
[328079546,1716839456821,-500.0,0.00028219,4]
[328079548,1716839456832,-500.0,0.00028219,4]
[328079550,1716839456841,-500.0,0.00028219,4]
[328079552,1716839456850,-500.0,0.00028219,4]
[328079554,1716839456859,-731.3,0.00028219,4]
[328079556,1716839456868,-500.0,0.00028219,4]
[328079558,1716839456877,-500.0,0.00028219,4]
[328079560,1716839456886,-500.0,0.00028219,4]
[328079562,1716839456896,-467.55172894,0.00028219,4]
[328079564,1716839456905,-500.0,0.00028219,4]
[328079566,1716839456914,-500.0,0.00028219,4]
[328079568,1716839456923,-573.48,0.00028219,4]
[328079570,1716839456933,-601.62,0.00028219,4]
[328079572,1716839456942,-500.0,0.00028219,4]
[328079574,1716839456952,-500.0,0.00028219,4]
[328079576,1716839456961,-626.6,0.00028219,4]
[328079578,1716839456971,-500.0,0.00028219,4]
[328079580,1716839456980,-500.0,0.00028219,4]
[328079582,1716839456990,-608.4746415,0.00028219,4]
[328079584,1716839456999,-1242.77,0.00028219,4]
[328079586,1716839457008,-500.0,0.00028219,4]
[328079588,1716839457017,-500.0,0.00028219,4]
[328079590,1716839457027,-484.426738,0.00028219,2]
[328079592,1716839457040,-484.426738,0.00028219,2]
[328079594,1716839457049,-547.65,0.00028219,4]
[328079596,1716839457058,-484.426738,0.00028219,2]
[328079598,1716839457068,-484.426736,0.00028219,2]
[328079600,1716839457076,-1186.2,0.00028219,4]
[328079602,1716839457086,-500.0,0.00028219,4]
[328079604,1716839457095,-500.0,0.00028219,4]
[328079605,1716839457103,-500.0,0.00028219,4]
[328079607,1716839457113,-500.0,0.00028219,4]
[328079609,1716839457122,-698.18,0.00028219,2]
[328079611,1716839457131,-537.74,0.00028219,4]
[328079613,1716839457140,-963.1,0.00028219,4]
[328079615,1716839457149,-626.71,0.00028219,4]
[328079617,1716839457158,-769.16,0.00028219,4]
[328079619,1716839457167,-500.0,0.00028219,4]
[328079621,1716839457176,-500.0,0.00028219,4]
[328079623,1716839457186,-663.05,0.00028219,4]
[328079625,1716839457196,-500.0,0.00028219,4]
[328079626,1716839457207,-636.71,0.00028219,4]
[328079628,1716839457217,-500.0,0.00028219,4]
[328079630,1716839457226,-843.35,0.00028219,4]
[328079632,1716839457236,-364.858996,0.00028219,2]
[328079634,1716839457246,-364.858996,0.00028219,2]
[328079636,1716839457255,-364.858996,0.00028219,2]
[328079638,1716839457264,-364.858996,0.00028219,2]
[328079640,1716839457274,-500.0,0.00028219,4]
[328079642,1716839457291,-364.858996,0.00028219,2]
[328079644,1716839457302,-364.859002,0.00028219,2]
[328079646,1716839457311,-500.0,0.00028219,4]
[328079648,1716839457320,-1448.51,0.00028219,4]
[328079650,1716839457329,-500.0,0.00028219,4]
[328079652,1716839457338,-500.0,0.00028219,4]
[328079654,1716839457347,-500.0,0.00028219,4]
[328079656,1716839457356,-500.0,0.00028219,4]
[328079658,1716839457367,-1819.09,0.00028219,4]
[328079660,1716839457378,-500.0,0.00028219,4]
[328079662,1716839457387,-659.81,0.00028219,4]
[328079664,1716839457396,-500.0,0.00028219,4]
[328079666,1716839457406,-2189.09,0.00028219,4]
[328079668,1716839457415,-575.02,0.00028219,4]
[328079670,1716839457424,-500.0,0.00028219,4]
[328079672,1716839457433,-552.67,0.00028219,4]
[328079674,1716839457442,-500.0,0.00028219,4]
[328079676,1716839457452,-500.0,0.00028219,4]
[328079678,1716839457461,-686.62,0.00028219,4]
[328079680,1716839457470,-500.0,0.00028219,4]
[328079682,1716839457479,-500.0,0.00028219,4]
[328079684,1716839457488,-500.0,0.00028219,4]
[328079686,1716839457497,-500.0,0.00028219,4]
[328079688,1716839457506,-500.0,0.00028219,4]
[328079689,1716839457515,-559.75,0.00028219,4]
[328079690,1716839457524,-500.0,0.00028219,4]
[328079691,1716839457533,-1162.4,0.00028219,4]
[328079692,1716839457546,-500.0,0.00028219,4]
[328079693,1716839457555,-1703.79,0.00028219,4]
[328079694,1716839457564,-500.0,0.00028219,4]
[328079695,1716839457573,-1445.44,0.00028219,4]
[328079696,1716839457582,-500.0,0.00028219,4]
[328079697,1716839457591,-500.0,0.00028219,4]
[328079698,1716839457600,-500.0,0.00028219,4]
[328079699,1716839457609,-620.35,0.00028219,4]
[328079700,1716839457619,-500.0,0.00028219,4]
[328079701,1716839457629,-500.0,0.00028219,4]
[328079702,1716839457638,-1246.08,0.00028219,4]
[328079703,1716839457648,-500.0,0.00028219,4]
[328079704,1716839457657,-302.861523,0.00028219,2]
[328079705,1716839457667,-302.861523,0.00028219,2]
[328079706,1716839457677,-1630.19,0.00028219,4]
[328079707,1716839457686,-302.861523,0.00028219,2]
[328079708,1716839457696,-302.861526,0.00028219,2]
[328079709,1716839457705,-500.0,0.00028219,4]
[328079710,1716839457714,-873.57,0.00028219,4]
[328079711,1716839457724,-500.0,0.00028219,4]
[328079712,1716839457733,-500.0,0.00028219,4]
[328079713,1716839457742,-500.0,0.00028219,4]
[328079715,1716839457751,-500.0,0.00028219,4]
[328079717,1716839457760,-1716.44,0.00028219,4]
[328079719,1716839457771,-218.126001,0.00028219,2]
[328079721,1716839457780,-218.126001,0.00028219,2]
[328079723,1716839457793,-218.126001,0.00028219,2]
[328079725,1716839457802,-218.126001,0.00028219,2]
[328079727,1716839457811,-500.0,0.00028219,4]
[328079729,1716839457820,-500.0,0.00028219,4]
[328079731,1716839457830,-500.0,0.00028219,4]
[328079733,1716839457839,-713.01,0.00028219,4]
[328079735,1716839457848,-500.0,0.00028219,4]
[328079737,1716839457858,-1785.76,0.00028219,4]
[328079739,1716839457868,-500.0,0.00028219,4]
[328079741,1716839457877,-500.0,0.00028219,4]
[328079743,1716839457886,-500.0,0.00028219,4]
[328079744,1716839457896,-682.098735,0.00028219,2]
[328079746,1716839457905,-682.098735,0.00028219,2]
[328079749,1716839457915,-500.0,0.00028219,4]
[328079751,1716839457925,-682.098735,0.00028219,2]
[328079752,1716839457935,-500.0,0.00028219,4]
[328079753,1716839457944,-682.098735,0.00028219,2]
[328079754,1716839457954,-682.098735,0.00028219,2]
[328079755,1716839457964,-500.0,0.00028219,4]
[328079756,1716839457974,-500.0,0.00028219,4]
[328079757,1716839457983,-682.09873321,0.00028219,2]
[328079758,1716839457993,-2296.91,0.00028219,4]
[328079760,1716839458003,-687.35,0.00028219,4]
[328079762,1716839458013,-500.0,0.00028219,4]
[328079764,1716839458024,-598.12,0.00028219,4]
[328079766,1716839458033,-2656.45,0.00028219,4]
[328079768,1716839458047,-8265.85,0.00028219,4]
[328079770,1716839458057,-500.0,0.00028219,4]
[328079772,1716839458067,-965.84,0.00028219,4]
[328079774,1716839458076,-500.0,0.00028219,4]
[328079776,1716839458086,-1148.95,0.00028219,4]
[328079778,1716839458096,-619.8,0.00028219,4]
[328079780,1716839458106,-582.95,0.00028219,4]
[328079782,1716839458116,-853.04,0.00028219,4]
[328079784,1716839458126,-151.0,0.00028219,2]
[328079786,1716839458136,-151.0,0.00028219,2]
[328079788,1716839458146,-151.0,0.00028219,2]
[328079790,1716839458155,-500.0,0.00028219,4]
[328079792,1716839458165,-300.0,0.00028219,4]
[328079794,1716839458174,-500.0,0.00028219,4]
[328079796,1716839458185,-534.35,0.00028219,4]
[328079798,1716839458197,-834.98,0.00028219,4]
[328079800,1716839458208,-500.0,0.00028219,4]
[328079802,1716839458217,-10588.65,0.00028219,4]
[328079804,1716839458226,-500.0,0.00028219,4]
[328079806,1716839458238,-500.0,0.00028219,4]
[328079808,1716839458247,-500.0,0.00028219,4]
[328079810,1716839458256,-1696.35,0.00028219,4]
[328079811,1716839458266,-500.0,0.00028219,4]
[328079813,1716839458275,-946.79,0.00028219,4]
[328079815,1716839458290,-500.0,0.00028219,4]
[328079817,1716839458299,-500.0,0.00028219,4]
[328079819,1716839458309,-500.0,0.00028219,4]
[328079821,1716839458318,-500.0,0.00028219,4]
[328079823,1716839458326,-500.0,0.00028219,4]
[328079825,1716839458335,-500.0,0.00028219,4]
[328079827,1716839458344,-1405.43,0.00028219,2]
[328079829,1716839458354,-637.07899466,0.00028219,4]
[328079831,1716839458363,-778.07,0.00028219,4]
[328079833,1716839458371,-500.0,0.00028219,4]
[328079835,1716839458381,-2107.73,0.00028219,4]
[328079837,1716839458390,-4154.84,0.00028219,4]
[328079839,1716839458399,-500.0,0.00028219,4]
[328079841,1716839458409,-500.0,0.00028219,4]
[328079843,1716839458418,-500.0,0.00028219,4]
[328079845,1716839458427,-500.0,0.00028219,4]
[328079847,1716839458436,-500.0,0.00028219,4]
[328079849,1716839458445,-500.0,0.00028219,4]
[328079851,1716839458454,-1342.97,0.00028219,4]
[328079853,1716839458463,-500.0,0.00028219,4]
[328079855,1716839458472,-500.0,0.00028219,4]
[328079857,1716839458482,-744.7,0.00028219,4]
[328079858,1716839458491,-500.0,0.00028219,4]
[328079860,1716839458501,-500.0,0.00028219,4]
[328079862,1716839458510,-695.05,0.00028219,4]
[328079864,1716839458519,-521.38,0.00028219,4]
[328079866,1716839458528,-1720.73,0.00028219,4]
[328079868,1716839458539,-500.0,0.00028219,4]
[328079869,1716839458548,-500.0,0.00028219,4]
[328079871,1716839458557,-500.0,0.00028219,4]
[328079873,1716839458566,-3119.81,0.00028219,4]
[328079875,1716839458575,-500.0,0.00028219,4]
[328079877,1716839458585,-1489.62,0.00028219,4]
[328079879,1716839458594,-500.0,0.00028219,4]
[328079881,1716839458603,-500.0,0.00028219,4]
[328079883,1716839458612,-4538.92,0.00028219,4]
[328079885,1716839458622,-12296.44,0.00028219,4]
[328079887,1716839458631,-500.0,0.00028219,4]
[328079889,1716839458640,-500.0,0.00028219,4]
[328079891,1716839458649,-1587.5,0.00028219,4]
[328079893,1716839458658,-600.29,0.00028219,4]
[328079894,1716839458668,-500.0,0.00028219,4]
[328079896,1716839458678,-500.0,0.00028219,4]
[328079898,1716839458687,-500.0,0.00028219,4]
[328079900,1716839458696,-13552.79,0.00028219,4]
[328079901,1716839458706,-590.99,0.00028219,4]
[328079902,1716839458715,-500.0,0.00028219,4]
[328079903,1716839458724,-578.94,0.00028219,4]
[328079904,1716839458733,-500.0,0.00028219,4]
[328079905,1716839458742,-500.0,0.00028219,4]
[328079906,1716839458752,-500.0,0.00028219,4]
[328079907,1716839458761,-500.0,0.00028219,4]
[328079908,1716839458770,-2352.06,0.00028219,4]
[328079909,1716839458779,-1459.35,0.00028219,4]
[328079910,1716839458792,-500.0,0.00028219,4]
[328079911,1716839458801,-215.834358,0.00028219,2]
[328079912,1716839458811,-500.0,0.00028219,4]
[328079913,1716839458822,-742.11,0.00028219,4]
[328079914,1716839458831,-500.0,0.00028219,4]
[328079915,1716839458841,-537.04,0.00028219,4]
[328079916,1716839458850,-215.834353,0.00028219,2]
[328079918,1716839458860,-511.68,0.00028219,4]
[328079920,1716839458870,-5106.18,0.00028219,4]
[328079922,1716839458881,-408.97384402,0.00028219,4]
[328079924,1716839458891,-500.0,0.00028219,4]